bitfinex/quotes_BTCUSD_20241216
["timestamp","ask_amount","ask_price","bid_price","bid_amount"]
[1734373290408,3.65786342,107220.0,107210.0,8.64e-05]
[1734373291221,3.65786342,107220.0,107210.0,0.71571556]
[1734373291418,3.65786342,107220.0,107210.0,0.7043574]
[1734373292062,3.65786342,107220.0,107210.0,8.64e-05]
[1734373292426,3.65786342,107220.0,107210.0,0.4372854]
[1734373293566,4.29115412,107220.0,107210.0,0.3470034]
[1734373293766,4.36695412,107220.0,107210.0,0.1792394]
[1734373293942,4.36695412,107220.0,107210.0,0.01112713]
[1734373294151,4.30195411,107220.0,107210.0,0.01112713]
[1734373294931,3.76295411,107220.0,107210.0,0.01112713]
[1734373295136,3.81035411,107220.0,107210.0,8.64e-05]
[1734373296051,0.05,107200.0,107190.0,8.64e-05]
[1734373296267,0.2270907,107200.0,107190.0,8.64e-05]
[1734373296473,0.1770907,107200.0,107190.0,8.64e-05]
[1734373296707,0.1770907,107200.0,107190.0,0.6424444]
[1734373296911,0.1770907,107200.0,107190.0,0.4249504]
[1734373297121,3.67566341,107220.0,107190.0,0.14581326]
[1734373297418,3.59286341,107220.0,107200.0,3.220846]
[1734373297670,3.59286341,107220.0,107210.0,0.1172907]
[1734373297886,3.56782162,107220.0,107210.0,4.99822587]
[1734373298210,3.56782162,107220.0,107210.0,4.7511317]
[1734373298408,3.56782162,107220.0,107210.0,4.2708087]
[1734373298660,3.56782162,107220.0,107210.0,4.1321167]
[1734373298876,3.56782162,107220.0,107210.0,4.0732727]
[1734373299341,3.50282161,107220.0,107210.0,4.0732727]
[1734373299534,3.48707076,107220.0,107210.0,4.0732727]
[1734373299859,3.48707076,107220.0,107210.0,3.9892867]
[1734373300074,3.48707076,107220.0,107210.0,3.78123018]
[1734373300725,3.40614416,107220.0,107210.0,3.83073018]
[1734373300962,3.36198717,107220.0,107210.0,3.99367349]
[1734373301170,3.36198717,107220.0,107210.0,3.35521749]
[1734373301367,3.36198717,107220.0,107210.0,2.95003049]
[1734373301491,3.36198717,107220.0,107210.0,2.90868092]
[1734373301889,3.36198717,107220.0,107210.0,2.70209918]
[1734373302295,3.35889215,107220.0,107210.0,2.70209918]
[1734373302737,3.35889215,107220.0,107210.0,2.92703049]
[1734373302942,3.35889215,107220.0,107210.0,2.85141549]
[1734373303988,3.35889215,107220.0,107210.0,2.85132243]
[1734373304131,3.33879173,107220.0,107210.0,2.85132243]
[1734373304341,3.21676786,107220.0,107210.0,2.73008418]
[1734373304706,3.20526693,107220.0,107210.0,5.15500618]
[1734373304953,3.20526693,107220.0,107210.0,5.52095484]
[1734373305124,3.20526693,107220.0,107210.0,5.37074684]
[1734373305324,3.20526693,107220.0,107210.0,4.44459118]
[1734373305557,3.20526693,107220.0,107210.0,4.15098318]
[1734373305677,3.20526693,107220.0,107210.0,3.85726418]
[1734373305877,3.20526693,107220.0,107210.0,3.78010818]
[1734373306136,3.20526693,107220.0,107210.0,3.50786418]
[1734373306338,3.20526693,107220.0,107210.0,3.87381284]
[1734373306678,3.20526693,107220.0,107210.0,3.50786418]
[1734373306884,3.20526693,107220.0,107210.0,3.67898184]
[1734373307126,3.20526693,107220.0,107210.0,3.24990118]
[1734373307955,3.20526693,107220.0,107210.0,2.91881218]
[1734373308468,3.20526693,107220.0,107210.0,2.54774818]
[1734373308645,3.20526693,107220.0,107210.0,1.90558018]
[1734373308929,3.20526693,107220.0,107210.0,1.77898018]
[1734373309134,3.20970184,107220.0,107210.0,1.59997018]
[1734373309390,3.20970184,107220.0,107210.0,1.45617948]
[1734373309804,3.14470183,107220.0,107210.0,1.45617948]
[1734373310014,3.14470183,107220.0,107210.0,1.66277188]
[1734373310395,3.14470183,107220.0,107210.0,1.66274672]
[1734373310745,3.14470183,107220.0,107210.0,1.662695]
[1734373310954,3.14470183,107220.0,107210.0,1.45617948]
[1734373311676,3.14470183,107220.0,107210.0,1.66267254]
[1734373311887,3.14470183,107220.0,107210.0,1.45617948]
[1734373312755,3.14470183,107220.0,107210.0,1.45626588]
[1734373313176,3.14470183,107220.0,107210.0,1.57355658]
[1734373313378,3.14470183,107220.0,107210.0,1.82137717]
[1734373313705,3.14470183,107220.0,107210.0,1.45626588]
[1734373313834,3.1413893,107220.0,107210.0,1.45626588]
[1734373314431,3.07638929,107220.0,107210.0,1.45626588]
[1734373315059,3.07638929,107220.0,107210.0,0.01102488]
[1734373315279,3.07638929,107220.0,107210.0,2.61236188]
[1734373315483,3.07638929,107220.0,107210.0,2.54699088]
[1734373316434,3.07638929,107220.0,107210.0,2.58020847]
[1734373316628,3.07638929,107220.0,107210.0,2.33238788]
[1734373316952,3.07638929,107220.0,107210.0,2.32123188]
[1734373317153,3.07233145,107220.0,107210.0,2.32123188]
[1734373317815,3.07233145,107220.0,107210.0,2.01030188]
[1734373317949,3.07233145,107220.0,107210.0,1.90154388]
[1734373319283,3.00733144,107220.0,107210.0,1.80839002]
[1734373319859,3.00733144,107220.0,107210.0,1.60186088]
[1734373320979,3.00733144,107220.0,107210.0,1.84970094]
[1734373322335,3.00733144,107220.0,107210.0,1.60186088]
[1734373323168,3.00733144,107220.0,107210.0,1.71915158]
[1734373323378,2.8438623,107220.0,107210.0,2.01629164]
[1734373323549,2.8438623,107220.0,107210.0,2.06629164]
[1734373323921,2.8438623,107220.0,107210.0,1.99329164]
[1734373324129,2.8438623,107220.0,107210.0,2.04319011]
[1734373324346,2.77886229,107220.0,107210.0,2.04319011]
[1734373324756,2.77886229,107220.0,107210.0,1.99319011]
[1734373324968,2.67886229,107220.0,107210.0,1.89889941]
[1734373325388,2.67886229,107220.0,107210.0,1.92413641]
[1734373326394,2.67886229,107220.0,107210.0,2.04142711]
[1734373326720,2.67886229,107220.0,107210.0,2.01842711]
[1734373326929,2.67886229,107220.0,107210.0,1.50771959]
[1734373327103,2.67886229,107220.0,107210.0,1.41342889]
[1734373327771,2.67886229,107220.0,107210.0,1.36412889]
[1734373328344,2.67886229,107220.0,107210.0,1.58157504]
[1734373328958,2.67886229,107220.0,107210.0,1.37508986]
[1734373329156,2.61386228,107220.0,107210.0,1.58157347]
[1734373329335,2.61386228,107220.0,107210.0,1.58157332]
[1734373329716,2.61386228,107220.0,107210.0,1.49238056]
[1734373329925,2.61386228,107220.0,107210.0,1.83951909]
[1734373330430,2.61386228,107220.0,107210.0,1.76651909]
[1734373330767,2.61386228,107220.0,107210.0,1.67222839]
[1734373330993,2.60336228,107220.0,107210.0,1.42448986]
[1734373331147,2.60336228,107220.0,107210.0,1.37508986]
[1734373332789,3.14236228,107220.0,107210.0,1.37508986]
[1734373333427,3.14236228,107220.0,107210.0,1.46938056]
[1734373333969,3.14236228,107220.0,107210.0,1.37508986]
[1734373334349,3.07736227,107220.0,107210.0,1.37508986]
[1734373334590,3.07736227,107220.0,107210.0,3.15173297]
[1734373334711,3.07736227,107220.0,107210.0,3.06291797]
[1734373335153,3.07736227,107220.0,107210.0,3.15720867]
[1734373335891,3.07736227,107220.0,107210.0,2.46805467]
[1734373336129,3.07736227,107220.0,107210.0,2.36326797]
[1734373337030,3.07736227,107220.0,107210.0,2.6110929]
[1734373338420,2.53836227,107220.0,107210.0,2.23662937]
[1734373338753,3.07736227,107220.0,107210.0,1.33733637]
[1734373339178,3.01236226,107220.0,107210.0,1.33733637]
[1734373339374,3.01236226,107220.0,107210.0,1.49671903]
[1734373340537,3.22975296,107220.0,107210.0,1.49671903]
[1734373340758,2.71375296,107220.0,107210.0,0.0253234]
[1734373340962,2.71375296,107220.0,107190.0,0.16556676]
[1734373340963,0.0363,107200.0,107190.0,0.16556676]
[1734373341289,0.05,107190.0,107180.0,8.64e-05]
[1734373341467,0.1442907,107190.0,107180.0,8.64e-05]
[1734373341666,0.04071182,107200.0,107180.0,8.64e-05]
[1734373341884,0.00441009,107190.0,107180.0,3.0759424]
[1734373342099,0.00441009,107190.0,107180.0,0.20677506]
[1734373343380,0.00441009,107190.0,107180.0,3.12897606]
[1734373343588,0.00441009,107190.0,107180.0,2.93012106]
[1734373343743,0.00441009,107190.0,107180.0,2.83494106]
[1734373343939,0.00441009,107190.0,107180.0,2.38722006]
[1734373344148,0.02571008,107200.0,107180.0,2.34223406]
[1734373344345,0.12000078,107200.0,107190.0,0.72068]
[1734373344544,0.12000078,107200.0,107190.0,0.358689]
[1734373344747,0.12000078,107200.0,107190.0,0.330772]
[1734373344950,0.12000078,107200.0,107180.0,0.20708133]
[1734373345153,0.12000078,107200.0,107190.0,0.409338]
[1734373345921,0.13365363,107200.0,107190.0,0.409338]
[1734373346531,0.01365285,107200.0,107190.0,0.409338]
[1734373347002,2.52048621,107220.0,107190.0,0.409338]
[1734373347175,0.0942907,107210.0,107190.0,0.409338]
[1734373347576,0.12000078,107210.0,107190.0,0.409338]
[1734373348292,0.08269478,107210.0,107200.0,0.018656]
[1734373348521,0.02673578,107210.0,107200.0,0.018656]
[1734373349380,0.0383317,107210.0,107200.0,0.037311]
[1734373349613,0.0010257,107210.0,107200.0,0.037311]
[1734373350235,0.0240257,107210.0,107200.0,0.037311]
[1734373350437,0.0437044,107210.0,107200.0,0.037311]
[1734373350643,0.0250514,107210.0,107200.0,0.037311]
[1734373351474,2.45770252,107220.0,107210.0,0.018654]
[1734373351678,2.53334022,107220.0,107210.0,0.018654]
[1734373352288,2.53107422,107220.0,107210.0,0.018654]
[1734373352486,2.53050238,107220.0,107210.0,0.018654]
[1734373353082,2.58000238,107220.0,107210.0,0.018654]
[1734373353748,2.67798238,107220.0,107210.0,0.018654]
[1734373354368,2.61298237,107220.0,107210.0,0.018654]
[1734373355395,0.1011,107210.0,107200.0,0.03731]
[1734373355595,0.1953907,107210.0,107200.0,0.03731]
[1734373356665,0.0781,107210.0,107180.0,8.64e-05]
[1734373356840,0.0781,107210.0,107190.0,0.452122]
[1734373357087,0.06927033,107210.0,107190.0,0.356278]
[1734373357292,0.06927033,107210.0,107180.0,8.64e-05]
[1734373357817,0.06927033,107210.0,107190.0,0.136309]
[1734373359528,0.00427032,107210.0,107190.0,0.1363954]
[1734373359731,0.00427032,107210.0,107190.0,8.64e-05]
[1734373359940,2.32111167,107220.0,107190.0,8.64e-05]
[1734373360139,2.38890237,107220.0,107200.0,0.02796454]
[1734373360352,2.38890237,107220.0,107190.0,8.64e-05]
[1734373360563,0.539,107200.0,107190.0,8.64e-05]
[1734373360766,0.539,107200.0,107190.0,1.3425334]
[1734373361180,2.40315907,107220.0,107190.0,1.3425334]
[1734373361383,2.40315907,107220.0,107190.0,8.64e-05]
[1734373362006,2.40315907,107220.0,107170.0,0.09480636]
[1734373362210,0.539,107210.0,107180.0,2.360366]
[1734373362617,0.539,107210.0,107190.0,0.763968]
[1734373362819,0.539,107210.0,107180.0,2.119695]
[1734373363265,0.539,107200.0,107180.0,2.119695]
[1734373363466,0.539,107210.0,107180.0,2.169295]
[1734373363669,0.539,107210.0,107190.0,1.628462]
[1734373363822,0.539,107210.0,107180.0,0.0496]
[1734373364029,0.539,107200.0,107190.0,1.056784]
[1734373364226,0.47399999,107200.0,107190.0,1.056784]
[1734373364427,0.47399999,107200.0,107190.0,0.786564]
[1734373364624,2.50113907,107220.0,107190.0,0.77331]
[1734373364827,2.50113907,107220.0,107190.0,0.773302]
[1734373365045,2.50113907,107220.0,107200.0,0.02796454]
[1734373365251,2.50113907,107220.0,107180.0,0.0496]
[1734373365413,0.539,107210.0,107180.0,0.0496]
[1734373365660,0.539,107200.0,107180.0,0.0496]
[1734373366283,2.50113907,107220.0,107180.0,0.0496]
[1734373366504,0.8357707,107210.0,107170.0,0.01360636]
[1734373366711,0.8357707,107210.0,107160.0,0.084171]
[1734373366970,0.8357707,107210.0,107160.0,0.1784617]
[1734373367167,0.6332907,107200.0,107170.0,0.130423]
[1734373367323,0.539,107180.0,107160.0,0.09811651]
[1734373367529,0.6332907,107180.0,107160.0,0.09811651]
[1734373367928,0.539,107170.0,107160.0,0.037271]
[1734373368603,0.53956194,107170.0,107160.0,0.037271]
[1734373369433,0.47456193,107170.0,107160.0,0.037271]
[1734373370553,0.47456193,107170.0,107160.0,0.195725]
[1734373370689,0.47456193,107170.0,107160.0,0.142472]
[1734373371222,0.47456193,107170.0,107160.0,0.1425584]
[1734373372820,0.46523488,107170.0,107160.0,0.1425584]
[1734373374344,0.40023487,107170.0,107160.0,0.1425584]
[1734373375580,0.53675166,107180.0,107160.0,0.4141491]
[1734373375797,0.53675166,107180.0,107170.0,4.7985907]
[1734373376002,0.53675166,107180.0,107170.0,4.8981907]
[1734373376193,0.53081938,107180.0,107170.0,4.8981907]
[1734373376427,0.53081938,107200.0,107180.0,0.1254]
[1734373376634,0.53081938,107200.0,107190.0,2.351052]
[1734373376836,0.53098786,107200.0,107190.0,2.351052]
[1734373377245,0.53098786,107200.0,107190.0,2.189609]
[1734373377418,0.53098786,107200.0,107190.0,1.966934]
[1734373377575,0.53098786,107200.0,107190.0,2.333387]
[1734373377784,0.53098786,107200.0,107190.0,2.297968]
[1734373377988,0.50766818,107200.0,107190.0,2.273942]
[1734373378301,0.50766818,107200.0,107190.0,2.407142]
[1734373378697,0.00016848,107200.0,107190.0,2.407142]
[1734373379398,0.44266817,107210.0,107190.0,2.407142]
[1734373379602,0.4427243,107210.0,107200.0,1.077463]
[1734373380070,0.4427243,107210.0,107200.0,1.011056]
[1734373380277,0.4427243,107210.0,107200.0,0.642173]
[1734373380485,0.4427243,107210.0,107200.0,0.445486]
[1734373380940,0.4427243,107210.0,107200.0,0.2424]
[1734373382183,0.4427243,107210.0,107200.0,0.3272907]
[1734373382391,0.4427243,107210.0,107200.0,0.4578907]
[1734373383008,0.4427243,107210.0,107200.0,0.4078907]
[1734373383222,0.4427243,107210.0,107200.0,0.4578907]
[1734373383441,0.4427243,107210.0,107200.0,0.4478907]
[1734373383654,5.613e-05,107210.0,107200.0,0.4478907]
[1734373384234,2.67177367,107220.0,107200.0,0.4478907]
[1734373384472,2.67177367,107220.0,107210.0,1.018065]
[1734373384679,2.2291055,107220.0,107210.0,1.018065]
[1734373384899,2.2291055,107220.0,107210.0,1.2896557]
[1734373385109,2.2291055,107220.0,107210.0,1.31762024]
[1734373387154,2.22446366,107220.0,107210.0,1.31762024]
[1734373387827,2.21917036,107220.0,107210.0,1.31762024]
[1734373388161,2.21203982,107220.0,107210.0,1.31762024]
[1734373388417,2.20832334,107220.0,107210.0,1.31762024]
[1734373389227,2.14332333,107220.0,107210.0,1.31762024]
[1734373389479,0.0006728,107260.0,107210.0,1.31762024]
[1734373389480,0.0001728,107270.0,107230.0,0.05]
[1734373389798,0.56147586,107290.0,107230.0,0.05]
[1734373389799,0.38297586,107290.0,107280.0,0.173]
[1734373390020,0.02774868,107360.0,107350.0,0.05]
[1734373390221,0.55367554,107370.0,107360.0,0.05]
[1734373390436,0.12608252,107370.0,107360.0,0.1442907]
[1734373390616,0.07512503,107370.0,107360.0,3.96501803]
[1734373390852,0.07512503,107370.0,107360.0,4.86711965]
[1734373391066,0.04225,107390.0,107380.0,0.05]
[1734373391193,0.04225,107390.0,107380.0,0.1442907]
[1734373391403,0.04225,107390.0,107380.0,3.8917557]
[1734373391604,0.57723363,107410.0,107390.0,0.1]
[1734373391818,0.57723363,107410.0,107400.0,1.81018476]
[1734373391819,0.57779648,107410.0,107400.0,1.81018476]
[1734373392034,0.57779648,107410.0,107400.0,2.67703738]
[1734373392436,0.57779648,107410.0,107400.0,2.24440966]
[1734373392691,0.57779648,107410.0,107400.0,1.73723226]
[1734373392985,0.57779648,107410.0,107400.0,1.78723362]
[1734373393203,0.11084855,107430.0,107400.0,2.37245915]
[1734373393419,24.94691774,107440.0,107430.0,0.14798]
[1734373393622,24.94691774,107440.0,107430.0,0.58928349]
[1734373393623,23.13536386,107440.0,107430.0,0.58928349]
[1734373393833,23.00876857,107440.0,107430.0,0.80424423]
[1734373394040,19.25263403,107440.0,107430.0,0.55888736]
[1734373394242,18.54155248,107440.0,107430.0,0.55888736]
[1734373394459,16.00496621,107440.0,107430.0,0.56173327]
[1734373394658,15.85237556,107440.0,107430.0,0.56173327]
[1734373394864,14.38178552,107440.0,107430.0,0.80409672]
[1734373395103,12.10311391,107440.0,107430.0,0.85052314]
[1734373395314,10.55438575,107440.0,107430.0,0.96924604]
[1734373395517,9.79992371,107440.0,107430.0,0.72787592]
[1734373395727,4.29702089,107440.0,107430.0,0.40025391]
[1734373395965,3.28702694,107440.0,107430.0,0.38752849]
[1734373396170,3.25657833,107440.0,107430.0,0.28886465]
[1734373396381,3.25657833,107440.0,107430.0,2.52034582]
[1734373396795,3.25657833,107440.0,107430.0,2.49034582]
[1734373397245,3.25657833,107440.0,107430.0,0.29339382]
[1734373397458,3.25657833,107440.0,107430.0,0.24532391]
[1734373397658,3.25657833,107440.0,107430.0,0.27798491]
[1734373397863,3.25657833,107440.0,107430.0,0.22798491]
[1734373398095,3.25657833,107440.0,107430.0,0.27798491]
[1734373398309,3.25657833,107440.0,107430.0,0.37227561]
[1734373398718,3.25657833,107440.0,107430.0,0.47227561]
[1734373398941,3.25235581,107440.0,107430.0,0.37227561]
[1734373399150,3.25235581,107440.0,107430.0,0.3365317]
[1734373399357,3.25235581,107440.0,107430.0,0.1442907]
[1734373399581,3.1873558,107440.0,107430.0,0.0942907]
[1734373399783,3.1873558,107440.0,107430.0,0.1442907]
[1734373400213,3.1873558,107440.0,107430.0,0.19522143]
[1734373400417,3.1823558,107440.0,107430.0,0.23239343]
[1734373400615,3.1823558,107440.0,107430.0,0.9703357]
[1734373400824,3.1823558,107440.0,107430.0,0.8790567]
[1734373400975,3.13858047,107440.0,107430.0,0.3313627]
[1734373401182,3.13858047,107440.0,107430.0,0.0942907]
[1734373401387,3.11310509,107440.0,107430.0,1.95800996]
[1734373401593,3.11310509,107440.0,107430.0,1.97105177]
[1734373402895,3.11310509,107440.0,107430.0,0.72454777]
[1734373403101,3.11310509,107440.0,107430.0,0.30453277]
[1734373403309,3.11263409,107440.0,107430.0,0.30453277]
[1734373403743,3.11263409,107440.0,107430.0,0.18081195]
[1734373404154,1.87263409,107440.0,107430.0,0.21797395]
[1734373404362,0.45477137,107450.0,107430.0,0.1314527]
[1734373404568,0.08321761,107450.0,107440.0,0.11822101]
[1734373404775,0.18396718,107490.0,107440.0,4.12459502]
[1734373404982,0.18396718,107490.0,107480.0,0.0942907]
[1734373405186,1.23464586,107500.0,107480.0,4.03591876]
[1734373405416,1.23464586,107500.0,107490.0,4.05524876]
[1734373405654,1.23464586,107500.0,107490.0,4.0543187]
[1734373405860,1.23464586,107500.0,107490.0,0.0942907]
[1734373406064,1.19960171,107500.0,107490.0,2.38180269]
[1734373406270,1.19977008,107500.0,107490.0,2.3808727]
[1734373406475,1.19977008,107500.0,107490.0,2.0363177]
[1734373407853,1.19977008,107500.0,107490.0,2.00827856]
[1734373408495,1.19977008,107500.0,107490.0,1.55408156]
[1734373408696,1.19977008,107500.0,107490.0,1.36326354]
[1734373408836,1.19977008,107500.0,107490.0,1.45755424]
[1734373409239,1.13477007,107500.0,107490.0,1.45755424]
[1734373409443,1.13429869,107500.0,107490.0,1.45755424]
[1734373410297,1.26119869,107500.0,107490.0,0.03572396]
[1734373410684,1.21119869,107500.0,107490.0,0.03572396]
[1734373411374,1.21119869,107500.0,107490.0,0.06572396]
[1734373411785,1.21119869,107500.0,107490.0,0.03]
[1734373412016,1.23419869,107500.0,107490.0,0.427329]
[1734373412186,1.23419869,107500.0,107490.0,0.197087]
[1734373413321,1.32848939,107500.0,107490.0,0.197087]
[1734373413874,1.22848939,107500.0,107490.0,0.197087]
[1734373414082,1.22848939,107500.0,107490.0,0.177153]
[1734373414302,1.16348938,107500.0,107490.0,0.03]
[1734373414497,1.16348938,107500.0,107460.0,0.00093029]
[1734373414498,0.05,107470.0,107460.0,0.00093029]
[1734373414709,0.05,107480.0,107470.0,0.796117]
[1734373414916,0.05,107470.0,107460.0,0.960009]
[1734373415127,0.05,107470.0,107440.0,0.05967291]
[1734373415328,0.09099887,107470.0,107450.0,1.88780917]
[1734373415498,0.04099887,107450.0,107440.0,0.1076176]
[1734373415720,0.04099887,107450.0,107440.0,0.09462365]
[1734373415960,0.04099887,107450.0,107440.0,0.0942907]
[1734373416301,0.02650395,107470.0,107440.0,1.53056531]
[1734373416503,0.04099887,107480.0,107450.0,3.5250877]
[1734373416504,0.06750282,107480.0,107450.0,3.5250877]
[1734373416708,0.02650395,107470.0,107460.0,2.57453839]
[1734373416910,0.02650395,107470.0,107460.0,0.0942907]
[1734373417174,0.04099887,107460.0,107440.0,0.04727644]
[1734373417381,0.04099887,107460.0,107450.0,1.4514247]
[1734373417814,0.06244056,107460.0,107450.0,1.3056017]
[1734373418484,0.05640512,107460.0,107450.0,1.3056017]
[1734373418698,0.03496343,107460.0,107450.0,1.3056017]
[1734373418904,0.05640512,107460.0,107450.0,1.3056017]
[1734373419313,0.023,107490.0,107450.0,1.3056017]
[1734373419526,0.1172907,107490.0,107460.0,0.81562324]
[1734373419732,0.1172907,107490.0,107470.0,0.541006]
[1734373419944,0.0487,107480.0,107460.0,0.00042424]
[1734373420557,0.04341313,107480.0,107460.0,0.00042424]
[1734373421592,0.1672907,107470.0,107460.0,0.00042424]
[1734373421796,0.1971907,107470.0,107460.0,0.00042424]
[1734373422007,0.0799,107470.0,107460.0,0.24052424]
[1734373422784,0.0799,107470.0,107460.0,0.31677224]
[1734373423183,0.0799,107470.0,107460.0,0.28474524]
[1734373423596,0.0799,107470.0,107460.0,0.00042424]
[1734373423863,0.0799,107470.0,107460.0,0.25666824]
[1734373424249,0.0799,107470.0,107460.0,0.00042424]
[1734373424445,0.1741907,107470.0,107460.0,0.00042424]
[1734373424667,0.13219069,107470.0,107460.0,0.00042424]
[1734373424882,0.13219069,107470.0,107430.0,0.05107255]
[1734373425084,0.13219069,107470.0,107440.0,0.70268295]
[1734373425302,0.13219069,107470.0,107430.0,0.1446015]
[1734373425503,0.1672907,107460.0,107430.0,0.0503108]
[1734373425728,0.7062907,107460.0,107430.0,0.0503108]
[1734373425897,0.0484,107440.0,107430.0,0.00025504]
[1734373426191,0.0484,107440.0,107430.0,0.46622504]
[1734373426397,0.01489999,107470.0,107430.0,3.33059474]
[1734373426587,0.01489999,107470.0,107440.0,3.09055529]
[1734373426902,0.01489999,107470.0,107450.0,2.026565]
[1734373427101,0.64449876,107470.0,107450.0,0.10654]
[1734373427311,0.01489999,107470.0,107450.0,0.0942907]
[1734373427511,0.01489999,107470.0,107460.0,2.156397]
[1734373427717,0.01489999,107470.0,107460.0,0.960996]
[1734373428061,0.01489999,107470.0,107460.0,0.612268]
[1734373428306,0.01439999,107470.0,107460.0,0.555075]
[1734373428489,0.01439999,107470.0,107440.0,1.975936]
[1734373428697,0.01439999,107470.0,107440.0,1.9007637]
[1734373428902,0.01439999,107470.0,107450.0,1.060267]
[1734373429076,0.01439999,107470.0,107450.0,1.040815]
[1734373429280,0.62998085,107490.0,107450.0,1.079794]
[1734373429482,0.62998085,107490.0,107450.0,1.069449]
[1734373429483,0.0942907,107480.0,107450.0,1.069449]
[1734373429676,0.0942907,107480.0,107450.0,0.821452]
[1734373429975,0.0942907,107480.0,107460.0,0.540448]
[1734373430149,0.0942907,107480.0,107450.0,0.63242]
[1734373430459,0.0942907,107480.0,107450.0,0.614411]
[1734373430616,0.0942907,107480.0,107440.0,1.431734]
[1734373431021,0.52998085,107470.0,107440.0,1.431734]
[1734373431210,0.62427155,107470.0,107440.0,0.396053]
[1734373431408,0.62427155,107470.0,107440.0,0.907117]
[1734373431608,0.52998085,107470.0,107450.0,0.00093063]
[1734373431856,0.52998085,107470.0,107460.0,2.661059]
[1734373432188,0.52998085,107470.0,107460.0,1.947037]
[1734373432568,0.52998085,107470.0,107460.0,1.847037]
[1734373432714,0.52998085,107470.0,107460.0,0.223667]
[1734373433080,0.52998085,107470.0,107440.0,2.227047]
[1734373433308,0.52998085,107470.0,107450.0,0.09522131]
[1734373433457,0.52585903,107470.0,107460.0,0.250697]
[1734373433714,0.52585903,107470.0,107460.0,0.222797]
[1734373434124,0.52585903,107480.0,107460.0,0.589599]
[1734373434327,0.0942907,107480.0,107430.0,0.0133848]
[1734373434537,0.1172907,107470.0,107440.0,1.19611059]
[1734373434733,0.023,107480.0,107450.0,0.216398]
[1734373434889,0.1172907,107480.0,107450.0,0.216398]
[1734373435091,0.0942907,107470.0,107450.0,0.02629814]
[1734373435316,0.0942907,107470.0,107440.0,0.810489]
[1734373435483,0.023,107480.0,107440.0,0.810489]
[1734373435680,0.1172907,107480.0,107440.0,0.810489]
[1734373436309,0.10585289,107480.0,107440.0,0.810489]
[1734373437074,0.56671191,107480.0,107440.0,0.810489]
[1734373437251,0.56671191,107480.0,107450.0,0.192655]
[1734373437501,0.56671191,107480.0,107440.0,1.145917]
[1734373437706,0.56671191,107480.0,107450.0,0.276778]
[1734373437707,0.0942907,107470.0,107450.0,0.276778]
[1734373437911,0.0942907,107470.0,107440.0,0.526025]
[1734373438319,0.0942907,107470.0,107440.0,0.450494]
[1734373438527,0.41671191,107480.0,107440.0,0.450494]
[1734373438730,0.51100261,107480.0,107440.0,0.450494]
[1734373439285,0.3960026,107480.0,107440.0,0.5447847]
[1734373439492,0.3960026,107480.0,107450.0,0.662076]
[1734373439895,0.14211275,107490.0,107460.0,0.09522129]
[1734373440075,0.14211275,107490.0,107470.0,1.069266]
[1734373440278,0.14211275,107490.0,107470.0,0.651181]
[1734373440476,0.1318368,107490.0,107460.0,0.0942907]
[1734373440678,0.1318368,107490.0,107470.0,0.611462]
[1734373441085,0.0001728,107480.0,107460.0,0.0942907]
[1734373441556,0.0001728,107480.0,107470.0,1.363403]
[1734373441593,0.10684772,107490.0,107470.0,1.4576937]
[1734373441794,0.10684772,107490.0,107460.0,0.08190427]
[1734373441995,0.10684772,107490.0,107460.0,0.17712536]
[1734373442199,0.10684772,107490.0,107470.0,0.976272]
[1734373442399,0.10684772,107490.0,107470.0,0.329324]
[1734373442604,0.10684772,107490.0,107470.0,0.817532]
[1734373443405,0.10684772,107490.0,107470.0,0.193757]
[1734373443631,0.10684772,107490.0,107470.0,0.62788]
[1734373443803,0.10211661,107490.0,107470.0,0.62788]
[1734373443999,0.10211661,107490.0,107460.0,0.09461312]
[1734373444178,0.2314073,107490.0,107460.0,0.09461312]
[1734373444380,0.639,107470.0,107450.0,0.20461173]
[1734373444581,0.05,107450.0,107440.0,0.16328381]
[1734373444787,0.1942907,107450.0,107430.0,0.0004072]
[1734373444963,0.0942907,107440.0,107430.0,0.0004072]
[1734373445326,0.1,107450.0,107430.0,0.0004072]
[1734373445501,0.1942907,107450.0,107430.0,0.0004072]
[1734373445922,0.539,107460.0,107440.0,0.936335]
[1734373446166,0.6332907,107460.0,107430.0,0.00057604]
[1734373446286,0.6332907,107460.0,107440.0,0.77536]
[1734373446822,0.6332907,107460.0,107440.0,0.506947]
[1734373447370,0.7100907,107460.0,107440.0,0.506947]
[1734373447791,0.7100907,107460.0,107440.0,0.125775]
[1734373447993,0.7100907,107460.0,107430.0,0.00057604]
[1734373448333,0.7100907,107460.0,107440.0,0.100432]
[1734373448538,0.7100907,107460.0,107430.0,0.00057604]
[1734373448736,0.7230292,107460.0,107430.0,0.00057604]
[1734373448991,0.0942907,107450.0,107430.0,0.00057604]
[1734373449138,0.0942907,107450.0,107440.0,0.113738]
[1734373449345,0.6787385,107460.0,107440.0,0.113738]
[1734373449543,0.7730292,107460.0,107440.0,0.113738]
[1734373449975,0.7730292,107460.0,107440.0,0.3]
[1734373450700,0.03614379,107460.0,107440.0,0.3]
[1734373453811,0.03614379,107460.0,107440.0,0.2999]
[1734373454230,0.0942907,107460.0,107440.0,0.2999864]
[1734373454845,0.0942907,107460.0,107440.0,0.2998864]
[1734373456214,0.0942907,107460.0,107440.0,0.39820361]
[1734373457056,0.60498106,107470.0,107440.0,0.39820361]
[1734373457209,0.55493728,107470.0,107450.0,0.45917]
[1734373457409,0.0001728,107480.0,107450.0,0.68556679]
[1734373457612,0.0001728,107480.0,107460.0,0.2122]
[1734373457930,0.0944635,107480.0,107470.0,0.05210609]
[1734373458097,0.0944635,107480.0,107450.0,0.28737132]
[1734373458528,0.11506218,107480.0,107450.0,0.28737132]
[1734373459159,0.1152315,107480.0,107450.0,0.28737132]
[1734373459337,0.020768,107480.0,107460.0,0.12315914]
[1734373460883,0.1150587,107480.0,107460.0,0.12315914]
[1734373461055,0.1150587,107480.0,107450.0,0.12315914]
[1734373462002,0.1150587,107480.0,107450.0,0.12322949]
[1734373462250,0.2130387,107480.0,107450.0,0.12322949]
[1734373462809,0.2389707,107470.0,107440.0,0.60364376]
[1734373463008,0.0813,107460.0,107440.0,0.42311589]
[1734373463239,0.1755907,107460.0,107440.0,0.2998864]
[1734373464334,0.11059069,107460.0,107440.0,0.2998864]
[1734373466477,0.64959069,107460.0,107440.0,0.2998864]
[1734373466701,0.1922707,107450.0,107440.0,0.2913981]
[1734373466879,0.1922707,107450.0,107440.0,0.23315845]
[1734373467080,0.2152707,107450.0,107440.0,0.13268311]
[1734373467727,0.2623707,107450.0,107440.0,0.13268311]
[1734373467953,0.2623707,107450.0,107440.0,0.11102764]
[1734373468158,0.12098,107440.0,107430.0,0.0004072]
[1734373468361,0.0807,107430.0,107390.0,0.0205702]
[1734373468593,0.0942907,107420.0,107380.0,0.20156582]
[1734373468812,0.0942907,107420.0,107380.0,0.29585652]